bitfinex/quotes_SOLUSD_20241031
["timestamp","ask_amount","ask_price","bid_price","bid_amount"]
[1730395039442,12.09952923,170.15,170.1,12.70447883]
[1730395039659,12.09952923,170.14,170.1,0.6049496]
[1730395040449,5.8778,170.13,170.1,0.6049496]
[1730395042323,17.97732923,170.13,170.1,0.6049496]
[1730395042638,5.8778,170.13,170.1,0.6049496]
[1730395043740,17.97732923,170.13,170.1,0.6049496]
[1730395044142,5.8778,170.13,170.1,0.6049496]
[1730395044728,21.28632605,170.17,170.12,12.09952923]
[1730395044926,15.1784,170.17,170.14,12.09952923]
[1730395045836,15.1784,170.17,170.14,17.97702923]
[1730395046751,15.1784,170.17,170.15,12.09952923]
[1730395047650,15.1784,170.17,170.16,12.09952923]
[1730395047850,15.1784,170.17,170.16,17.97632923]
[1730395049140,6.5397,170.19,170.16,32.66832923]
[1730395049345,17.97362923,170.24,170.18,12.09952923]
[1730395049934,17.97362923,170.24,170.19,5.8757]
[1730395050953,17.97362923,170.24,170.19,20.5651]
[1730395051459,12.09952923,170.23,170.19,14.6894]
[1730395052057,5.8746,170.23,170.18,12.09952923]
[1730395052352,17.97412923,170.23,170.17,12.09952923]
[1730395053159,17.97412923,170.23,170.18,5.8761]
[1730395053655,12.09952923,170.25,170.19,12.09952923]
[1730395053861,17.97282923,170.26,170.2,12.09952923]
[1730395054049,17.97282923,170.26,170.18,20.5664]
[1730395054050,12.09952923,170.25,170.19,12.09952923]
[1730395054736,5.874,170.24,170.19,17.97502923]
[1730395055128,5.874,170.24,170.2,12.09952923]
[1730395055634,12.09952923,170.26,170.2,12.09952923]
[1730395055836,5.8737,170.25,170.2,12.09952923]
[1730395056138,17.97322923,170.25,170.19,32.66442923]
[1730395058158,17.97292923,170.26,170.2,12.09952923]
[1730395058356,5.8734,170.26,170.21,12.09952923]
[1730395058565,13.61009695,170.26,170.21,7.73669695]
[1730395059065,13.61009695,170.26,170.2,7.73669695]
[1730395059248,13.61009695,170.26,170.2,13.61189695]
[1730395059432,13.61009695,170.26,170.2,28.30049695]
[1730395061058,5.8734,170.26,170.21,7.73669695]
[1730395061229,5.8734,170.26,170.22,7.73669695]
[1730395061434,5.8734,170.26,170.21,7.73669695]
[1730395062235,13.60969695,170.27,170.22,20.5615]
[1730395062443,13.60969695,170.27,170.22,28.29819695]
[1730395062942,13.60969695,170.27,170.22,20.5615]
[1730395063348,7.73669695,170.25,170.22,14.6868]
[1730395063537,7.73669695,170.26,170.22,14.6868]
[1730395064544,7.73669695,170.25,170.2,13.61199695]
[1730395064755,7.73669695,170.24,170.19,28.30169695]
[1730395065876,13.61089695,170.24,170.19,28.30169695]
[1730395066159,5.8742,170.24,170.2,7.73669695]
[1730395066357,13.61089695,170.24,170.19,22.42609695]
[1730395066538,13.61089695,170.24,170.19,14.6894]
[1730395066942,13.61089695,170.24,170.19,28.30179695]
[1730395067140,5.8742,170.24,170.19,28.30179695]
[1730395067546,13.61089695,170.24,170.19,14.6894]
[1730395067756,7.73669695,170.23,170.19,14.6894]
[1730395067944,7.73669695,170.24,170.19,14.6894]
[1730395068149,7.73669695,170.25,170.19,28.30179695]
[1730395068664,7.73669695,170.24,170.19,14.6894]
[1730395068873,7.73669695,170.23,170.17,7.73669695]
[1730395069177,7.73669695,170.24,170.18,7.73669695]
[1730395069560,7.73669695,170.25,170.19,7.73669695]
[1730395069870,7.73669695,170.24,170.18,7.73669695]
[1730395070058,13.61099695,170.24,170.19,5.8757]
[1730395070456,5.8743,170.24,170.2,7.73669695]
[1730395071447,5.8737,170.25,170.2,7.73669695]
[1730395071648,5.873,170.27,170.21,7.73669695]
[1730395071864,5.873,170.27,170.22,7.73669695]
[1730395072350,13.60969695,170.27,170.21,7.73669695]
[1730395073273,13.60969695,170.27,170.21,13.61169695]
[1730395075150,13.60969695,170.27,170.2,22.42519695]
[1730395075679,5.873,170.27,170.22,7.73669695]
[1730395076052,13.60969695,170.27,170.21,7.73669695]
[1730395076378,13.60969695,170.27,170.2,22.42519695]
[1730395076556,13.60969695,170.27,170.2,28.30059695]
[1730395077167,13.60969695,170.27,170.21,7.73669695]
[1730395077568,13.60969695,170.27,170.21,13.61159695]
[1730395079376,13.60969695,170.27,170.2,22.42519695]
[1730395079764,7.73669695,170.26,170.2,22.42519695]
[1730395079962,7.73669695,170.24,170.18,13.61269695]
[1730395080462,7.73669695,170.23,170.17,28.30379695]
[1730395081268,5.8747,170.22,170.17,28.30379695]
[1730395082996,5.8747,170.22,170.18,7.73669695]
[1730395084386,5.8744,170.23,170.18,7.73669695]
[1730395086082,5.8744,170.23,170.18,13.61279695]
[1730395086283,13.61109695,170.23,170.18,13.61279695]
[1730395086982,7.73669695,170.22,170.17,5.8763]
[1730395087168,13.61109695,170.23,170.18,7.73669695]
[1730395087363,5.8744,170.23,170.19,7.73669695]
[1730395087569,5.8744,170.23,170.17,20.5674]
[1730395087570,5.8744,170.23,170.2,7.73669695]
[1730395087867,5.8739,170.25,170.21,7.73669695]
[1730395088057,5.8733,170.27,170.22,7.73669695]
[1730395088260,8.75499563,170.29,170.23,7.73669695]
[1730395088461,13.60929695,170.29,170.23,13.61079695]
[1730395088657,7.73669695,170.28,170.23,5.8741]
[1730395088904,13.60929695,170.29,170.23,13.61079695]
[1730395089274,7.73669695,170.28,170.23,13.61079695]
[1730395089584,13.60959695,170.28,170.23,28.29679695]
[1730395090175,5.8729,170.28,170.23,28.29679695]
[1730395090490,14.27682047,170.31,170.26,7.73669695]
[1730395090685,14.27682047,170.31,170.23,20.5601]
[1730395090686,13.60829695,170.31,170.25,7.73669695]
[1730395090867,7.73669695,170.29,170.24,7.73669695]
[1730395091059,7.73669695,170.3,170.24,7.73669695]
[1730395091278,13.60829695,170.31,170.25,7.73669695]
[1730395091589,13.60829695,170.31,170.25,13.61029695]
[1730395095076,7.73669695,170.3,170.24,7.73669695]
[1730395095387,7.73669695,170.28,170.23,14.686]
[1730395095587,7.73669695,170.29,170.23,22.42269695]
[1730395095966,7.73669695,170.3,170.24,7.73669695]
[1730395096482,5.8723,170.29,170.24,7.73669695]
[1730395097382,5.8723,170.29,170.24,13.61049695]
[1730395097585,13.60899695,170.29,170.24,5.8738]
[1730395097893,5.8723,170.29,170.24,13.61049695]
[1730395098287,7.73669695,170.3,170.25,7.73669695]
[1730395098589,13.60829695,170.31,170.25,7.73669695]
[1730395099875,5.8713,170.32,170.27,7.73669695]
[1730395100489,7.73669695,170.3,170.25,20.5579]
[1730395101410,7.73669695,170.31,170.25,7.73669695]
[1730395101564,7.73669695,170.32,170.26,7.73669695]
[1730395101766,13.60759695,170.33,170.27,7.73669695]
[1730395101969,5.8709,170.33,170.28,7.73669695]
[1730395102376,5.8709,170.33,170.29,7.73669695]
[1730395102567,5.8709,170.33,170.28,7.73669695]
[1730395103495,5.8709,170.33,170.28,13.60899695]
[1730395103995,5.8709,170.33,170.28,28.29069695]
[1730395104175,13.60739695,170.34,170.28,28.29069695]
[1730395104581,5.8707,170.34,170.29,7.73669695]
[1730395104783,13.60739695,170.34,170.28,28.29069695]
[1730395105095,6.10501447,170.38,170.33,7.73669695]
[1730395105287,5.8688,170.39,170.35,7.73669695]
[1730395105483,5.8688,170.39,170.36,7.73669695]
[1730395105993,5.8688,170.39,170.37,7.73669695]
[1730395106202,5.8688,170.39,170.36,7.73669695]
[1730395106600,5.8688,170.39,170.35,7.73669695]
[1730395106793,7.73669695,170.38,170.33,7.73669695]
[1730395107302,7.73669695,170.39,170.33,7.73669695]
[1730395107691,7.73669695,170.36,170.31,7.73669695]
[1730395107881,28.27539695,170.41,170.35,7.73669695]
[1730395108077,5.8682,170.41,170.36,7.73669695]
[1730395109882,16.1975,170.43,170.38,7.73669695]
[1730395109883,5.8675,170.43,170.38,7.73669695]
[1730395110402,7.73669695,170.42,170.37,7.73669695]
[1730395110604,5.8675,170.43,170.35,35.86919695]
[1730395110605,7.73669695,170.41,170.35,35.86919695]
[1730395110902,7.73669695,170.41,170.35,23.66879695]
[1730395111384,5.8685,170.4,170.35,23.66879695]
[1730395111780,13.60519695,170.4,170.35,7.73669695]
[1730395112302,7.73669695,170.38,170.32,7.73669695]
[1730395112809,7.73669695,170.38,170.33,7.73669695]
[1730395113607,5.8695,170.37,170.33,7.73669695]
[1730395113916,13.60619695,170.37,170.31,36.43669695]
[1730395114076,13.60619695,170.37,170.31,24.36649695]
[1730395114701,13.60619695,170.37,170.31,7.73669695]
[1730395114898,7.73669695,170.35,170.29,7.73669695]
[1730395115605,7.73669695,170.31,170.26,23.57019695]
[1730395115902,7.73669695,170.32,170.27,7.73669695]
[1730395116104,13.60759695,170.33,170.27,7.73669695]
[1730395116702,7.73669695,170.32,170.27,7.73669695]
[1730395116912,7.73669695,170.34,170.28,7.73669695]
[1730395117089,7.73669695,170.33,170.28,7.73669695]
[1730395117499,7.73669695,170.33,170.27,7.73669695]
[1730395117686,7.73669695,170.33,170.28,20.5543]
[1730395117886,13.60749695,170.34,170.28,28.29099695]
[1730395118700,7.73669695,170.33,170.28,20.5543]
[1730395119007,13.60769695,170.33,170.28,20.5543]
[1730395119196,7.73669695,170.32,170.28,14.6817]
[1730395120086,7.73669695,170.31,170.28,14.6817]
[1730395120488,7.73669695,170.29,170.26,5.8733]
[1730395120689,7.73669695,170.3,170.26,5.8733]
[1730395120916,13.60839695,170.31,170.26,5.8733]
[1730395122108,21.2501,170.36,170.26,5.8733]
[1730395122109,7.73669695,170.34,170.28,7.73669695]
[1730395122405,13.60689695,170.35,170.29,7.73669695]
[1730395123193,13.60689695,170.35,170.3,5.8719]
[1730395123418,13.60689695,170.35,170.3,5.8519]
[1730395124089,13.60659695,170.36,170.3,28.26849695]
[1730395126014,7.73669695,170.35,170.3,20.5318]
[1730395126312,7.73669695,170.39,170.34,7.73669695]
[1730395126507,7.73669695,170.4,170.34,7.73669695]
[1730395127404,13.60519695,170.4,170.34,13.60719695]
[1730395128793,7.73669695,170.39,170.34,13.60719695]
[1730395128995,7.73669695,170.38,170.33,20.5481]
[1730395129200,7.73669695,170.39,170.33,28.28479695]
[1730395129418,7.73669695,170.38,170.33,28.28479695]
[1730395129722,7.73669695,170.38,170.33,20.5481]
[1730395130092,13.60599695,170.38,170.33,7.73669695]
[1730395131192,13.60599695,170.38,170.34,5.8706]
[1730395132012,5.8693,170.38,170.34,5.8706]
[1730395133928,13.60599695,170.38,170.32,7.73669695]
[1730395135014,13.60599695,170.38,170.33,5.8709]
[1730395135200,13.60599695,170.38,170.33,13.60759695]
[1730395135406,13.60599695,170.38,170.33,28.28489695]
[1730395137603,7.73669695,170.39,170.33,28.28489695]
[1730395138715,13.60579695,170.39,170.33,28.28489695]
[1730395139696,7.73669695,170.39,170.34,7.73669695]
[1730395140127,7.73669695,170.39,170.33,28.28489695]
[1730395140415,13.60559695,170.39,170.33,28.28489695]
[1730395141796,13.60559695,170.39,170.34,7.73669695]
[1730395141797,7.73669695,170.39,170.34,7.73669695]
[1730395141998,13.60489695,170.41,170.35,7.73669695]
[1730395142225,5.8682,170.41,170.36,7.73669695]
[1730395143017,5.8682,170.41,170.36,13.60639695]
[1730395143497,13.60489695,170.41,170.36,5.8697]
[1730395144004,13.60489695,170.41,170.36,28.28119695]
[1730395146500,7.73669695,170.38,170.33,7.73669695]
[1730395147326,7.73669695,170.36,170.31,28.28739695]
[1730395147507,7.73669695,170.37,170.32,7.73669695]
[1730395148119,5.8698,170.37,170.32,13.60789695]
[1730395149029,5.8698,170.37,170.33,7.73669695]
[1730395150621,5.8698,170.37,170.32,7.73669695]
[1730395151416,13.60649695,170.37,170.31,22.41579695]
[1730395151823,13.60649695,170.37,170.31,28.28739695]
[1730395152328,13.60649695,170.37,170.31,22.41579695]
[1730395152502,7.73669695,170.36,170.31,20.5507]
[1730395152701,13.60649695,170.37,170.32,7.73669695]
[1730395153117,13.60649695,170.37,170.31,28.28739695]
[1730395154425,7.73669695,170.36,170.31,28.28739695]
[1730395155426,20.77621986,170.41,170.31,28.28739695]
[1730395155427,13.60649695,170.37,170.31,28.28739695]
[1730395157213,7.73669695,170.32,170.26,7.73669695]
[1730395157407,7.73669695,170.31,170.25,28.29459695]
[1730395159216,7.73669695,170.31,170.26,7.73669695]
[1730395160408,7.73669695,170.31,170.27,5.873]
[1730395162842,13.60839695,170.31,170.27,5.873]
[1730395163835,13.60839695,170.31,170.25,7.73669695]
[1730395164019,13.60839695,170.31,170.26,20.5567]
[1730395164618,7.73669695,170.31,170.26,20.5567]
[1730395168226,7.73669695,170.31,170.26,28.29339695]
[1730395168747,13.60709695,170.35,170.29,7.73669695]
[1730395169837,13.60709695,170.35,170.3,5.8719]
[1730395170632,7.73669695,170.34,170.3,5.8719]
[1730395174425,7.73669695,170.34,170.3,20.5518]
[1730395175227,13.60719695,170.35,170.3,20.5518]
[1730395178039,5.8705,170.35,170.27,14.6823]
[1730395178245,7.73669695,170.31,170.27,14.6823]
[1730395181639,13.60829695,170.31,170.27,14.6823]
[1730395183636,13.60829695,170.31,170.26,7.73669695]
[1730395184656,7.73669695,170.32,170.26,7.73669695]
[1730395184835,7.73669695,170.32,170.27,5.873]
[1730395185543,7.73669695,170.29,170.26,14.6832]
[1730395185744,7.73669695,170.28,170.26,14.6832]
[1730395186769,7.73669695,170.29,170.26,14.6832]
[1730395187561,7.73669695,170.28,170.24,5.874]
[1730395187862,7.73669695,170.26,170.23,14.6855]
[1730395189365,7.73669695,170.24,170.2,14.6885]
[1730395189671,7.73669695,170.23,170.2,14.6885]
[1730395189851,7.73669695,170.23,170.19,5.8755]
[1730395190044,7.73669695,170.24,170.19,5.8755]
[1730395190852,13.61079695,170.24,170.19,5.8755]
[1730395192745,5.873,170.27,170.22,7.73669695]
[1730395193841,13.60969695,170.27,170.21,7.73669695]
[1730395195060,13.60969695,170.27,170.22,5.8747]
[1730395196672,7.73669695,170.25,170.2,7.73669695]
[1730395197172,7.73669695,170.25,170.19,7.73669695]
[1730395197674,7.73669695,170.25,170.2,22.42529695]
[1730395200763,7.73669695,170.25,170.2,28.30069695]
[1730395201471,13.61009695,170.26,170.2,28.30069695]
[1730395202175,7.73669695,170.25,170.2,20.564]
[1730395204282,7.73669695,170.25,170.2,22.42529695]
[1730395204461,5.874,170.24,170.2,22.42529695]
[1730395206505,5.874,170.24,170.2,28.30069695]
[1730395207587,5.8734,170.26,170.22,5.8747]
[1730395207786,5.8734,170.26,170.21,13.61169695]
[1730395208375,7.73669695,170.29,170.23,7.73669695]
[1730395208580,5.8719,170.31,170.26,7.73669695]
[1730395208887,7.73669695,170.3,170.25,7.73669695]
[1730395209090,7.73669695,170.29,170.23,7.73669695]
[1730395209394,7.73669695,170.29,170.23,31.51358095]
[1730395209562,13.60929695,170.29,170.23,13.61069695]
[1730395209763,13.60929695,170.29,170.23,28.29669695]
[1730395210185,7.73669695,170.27,170.21,7.73669695]
[1730395210397,7.73669695,170.27,170.22,5.8746]
[1730395210963,7.73669695,170.26,170.21,5.875]
[1730395211889,7.73669695,170.25,170.2,22.42489695]
[1730395212097,7.73669695,170.25,170.2,14.6882]
[1730395212589,7.73669695,170.26,170.2,28.30029695]
[1730395212792,7.73669695,170.27,170.21,7.73669695]
[1730395213287,7.73669695,170.26,170.2,28.30029695]
[1730395213461,7.73669695,170.25,170.2,28.30029695]
[1730395214085,13.61069695,170.25,170.2,28.30029695]
[1730395214286,5.874,170.25,170.2,28.30029695]
[1730395215469,13.61069695,170.25,170.2,14.6882]
[1730395216478,13.61069695,170.25,170.2,20.5636]
[1730395217777,7.73669695,170.22,170.17,7.73669695]
[1730395217992,7.73669695,170.22,170.17,5.8764]
[1730395218170,7.73669695,170.21,170.17,5.8764]
[1730395218967,13.61179695,170.21,170.16,20.568]
[1730395219192,7.73669695,170.2,170.14,7.73669695]
[1730395219379,7.73669695,170.2,170.15,5.8771]
[1730395219890,13.61179695,170.21,170.16,7.73669695]
[1730395220093,7.73669695,170.22,170.17,7.73669695]
[1730395220289,13.61069695,170.24,170.18,7.73669695]
[1730395221374,13.61069695,170.24,170.18,13.61279695]
[1730395222100,7.73669695,170.23,170.18,5.8761]
[1730395222401,7.73669695,170.23,170.18,20.5664]
[1730395222572,7.73669695,170.23,170.18,28.30309695]
[1730395222775,13.60999695,170.26,170.2,7.73669695]
[1730395223102,5.873,170.27,170.22,7.73669695]
[1730395223483,13.60859695,170.3,170.24,7.73669695]
[1730395223678,5.8719,170.3,170.25,7.73669695]
[1730395223877,13.60799695,170.32,170.26,7.73669695]
[1730395224686,13.60799695,170.32,170.26,13.60969695]
[1730395225789,7.73669695,170.33,170.27,7.73669695]
[1730395225987,6.09657633,170.36,170.31,7.73669695]
[1730395226173,7.73669695,170.37,170.32,7.73669695]
[1730395227203,13.60649695,170.37,170.32,7.73669695]
[1730395227578,27.41910439,170.41,170.32,7.73669695]
[1730395227579,6.09480439,170.41,170.37,23.776884]
[1730395227898,3.24,170.49,170.37,23.776884]
[1730395227899,5.8664,170.46,170.4,7.73669695]
[1730395228083,5.8664,170.46,170.41,7.73669695]
[1730395228278,5.8664,170.46,170.4,7.73669695]
[1730395228477,13.60309695,170.46,170.4,7.73669695]
[1730395228685,5.8664,170.46,170.41,7.73669695]
[1730395228978,5.8661,170.47,170.41,7.73669695]
[1730395229178,7.73669695,170.46,170.4,13.60499695]
[1730395229799,7.73669695,170.45,170.39,22.40869695]
[1730395229980,7.73669695,170.44,170.39,14.672]
[1730395230700,12.06272185,170.44,170.39,14.672]
[1730395231393,12.06272185,170.43,170.37,12.06272185]
[1730395231583,5.8675,170.43,170.38,12.06272185]
[1730395231789,17.92972185,170.45,170.39,12.06272185]
[1730395232180,12.06272185,170.46,170.4,12.06272185]
[1730395232375,12.06272185,170.45,170.39,12.06272185]
[1730395232978,17.92972185,170.45,170.39,17.93152185]
[1730395233800,12.06272185,170.44,170.38,12.06272185]
[1730395233995,12.06272185,170.44,170.37,14.6739]
[1730395233996,12.06272185,170.43,170.37,32.60592185]
[1730395235302,17.93002185,170.44,170.38,12.06272185]
[1730395236529,17.93002185,170.44,170.38,17.93182185]
[1730395237209,12.06272185,170.43,170.37,32.60612185]
[1730395238391,17.93052185,170.42,170.37,20.5434]
[1730395238582,12.06272185,170.41,170.35,17.93262185]
[1730395238782,12.06272185,170.4,170.35,17.93262185]
[1730395238983,12.06272185,170.4,170.35,5.8699]
[1730395239288,12.06272185,170.41,170.35,17.93262185]
[1730395239488,12.06272185,170.41,170.36,12.06272185]
[1730395239793,17.93112185,170.41,170.36,12.06272185]
[1730395241306,17.93112185,170.41,170.35,17.93262185]
[1730395241503,17.93112185,170.41,170.33,14.6766]
[1730395241504,12.06272185,170.38,170.33,14.6766]
[1730395241707,12.06272185,170.37,170.31,12.06272185]
[1730395242410,12.06272185,170.36,170.3,23.94942185]
[1730395243606,5.8702,170.35,170.3,23.94942185]
[1730395244103,5.8702,170.35,170.31,12.06272185]
[1730395244912,5.8702,170.35,170.3,17.93442185]
[1730395245109,12.06272185,170.35,170.3,5.8717]
[1730395246011,17.93302185,170.35,170.3,5.8717]
[1730395246997,12.06272185,170.34,170.29,14.68]
[1730395247196,12.06272185,170.33,170.29,14.68]
[1730395248114,5.8712,170.33,170.29,14.68]
[1730395249490,17.93392185,170.33,170.29,14.68]
[1730395250590,13.60114094,170.33,170.29,14.68]
[1730395251612,7.72994094,170.32,170.29,14.68]
[1730395252501,7.72994094,170.33,170.29,14.68]
[1730395252917,13.60114094,170.33,170.29,14.68]
[1730395253127,7.72994094,170.32,170.29,14.68]
[1730395254515,7.72994094,170.33,170.29,14.68]
[1730395255526,13.60114094,170.33,170.29,14.68]
[1730395256511,7.72994094,170.32,170.29,14.68]
[1730395257419,13.60124094,170.32,170.29,14.68]
[1730395257601,13.60124094,170.32,170.27,7.72994094]
[1730395257807,13.60124094,170.32,170.23,45.0747]
[1730395257808,7.72994094,170.31,170.25,22.41354094]
[1730395258309,7.72994094,170.31,170.26,7.72994094]
[1730395258613,13.60124094,170.32,170.27,7.72994094]
[1730395259114,5.8706,170.34,170.29,7.72994094]
[1730395259306,5.8706,170.34,170.3,7.72994094]
[1730395259504,7.72994094,170.37,170.31,7.72994094]
[1730395259812,5.8698,170.37,170.32,7.72994094]
[1730395260199,13.59974094,170.37,170.31,7.72994094]
[1730395260422,13.59974094,170.37,170.32,7.72994094]
[1730395261022,13.59974094,170.37,170.31,7.72994094]
[1730395261197,7.72994094,170.36,170.3,7.72994094]
[1730395261801,13.59974094,170.37,170.31,7.72994094]
[1730395262223,13.59974094,170.37,170.31,13.60144094]
[1730395262630,7.72994094,170.35,170.31,5.8715]
[1730395262927,7.72994094,170.32,170.24,13.60394094]
[1730395263131,7.72994094,170.29,170.24,13.60394094]
[1730395263426,7.72994094,170.29,170.24,28.28904094]
[1730395263920,7.72994094,170.27,170.22,13.60434094]
[1730395264125,7.72994094,170.28,170.22,7.72994094]
[1730395264301,7.72994094,170.28,170.19,49.9426]
[1730395264302,7.72994094,170.29,170.24,7.72994094]
[1730395264626,7.72994094,170.3,170.24,7.72994094]
[1730395265398,5.8723,170.29,170.24,13.60384094]
[1730395265804,7.72994094,170.32,170.27,7.72994094]
[1730395266304,5.871,170.33,170.28,7.72994094]
[1730395267207,7.72994094,170.32,170.26,7.72994094]
[1730395267527,7.72994094,170.3,170.24,13.60394094]
[1730395268116,7.72994094,170.29,170.24,13.60394094]
[1730395268319,7.72994094,170.28,170.23,14.6855]
[1730395268521,12.08570802,170.27,170.23,14.6855]
[1730395269023,12.08570802,170.28,170.23,20.5599]
[1730395269422,17.95860802,170.28,170.23,20.5599]
[1730395269821,12.08570802,170.27,170.23,20.5599]
[1730395270530,17.95880802,170.27,170.23,20.5599]
[1730395270733,12.08570802,170.26,170.22,5.8746]
[1730395271213,12.08570802,170.26,170.21,5.8749]
[1730395272235,17.95910802,170.26,170.21,5.8749]
[1730395272413,12.08570802,170.25,170.21,5.8749]
[1730395273207,12.08570802,170.25,170.2,20.5635]
[1730395273413,17.95910802,170.26,170.2,32.64920802]
[1730395275839,5.8734,170.26,170.2,32.64920802]
[1730395276012,12.08570802,170.23,170.2,14.6881]
[1730395276330,12.08570802,170.23,170.19,5.8757]
[1730395276636,12.08570802,170.23,170.18,17.96180802]
[1730395277225,12.08570802,170.25,170.19,12.08570802]
[1730395278039,17.95960802,170.25,170.2,5.8754]
[1730395278232,17.95960802,170.25,170.2,17.96110802]
[1730395278635,17.95960802,170.25,170.2,5.8754]
[1730395279330,12.08570802,170.26,170.2,12.08570802]
[1730395279526,12.08570802,170.27,170.21,12.08570802]
[1730395280344,12.08570802,170.26,170.2,12.08570802]
[1730395280542,12.08570802,170.25,170.21,5.875]
[1730395281420,12.08570802,170.25,170.2,20.5633]
[1730395282436,12.08570802,170.25,170.2,14.6879]
[1730395282437,12.08570802,170.23,170.2,14.6879]
[1730395282736,12.08570802,170.23,170.19,5.8755]
[1730395283426,12.08570802,170.23,170.19,14.6894]
[1730395283834,12.08570802,170.24,170.19,14.6894]
[1730395284218,12.08570802,170.26,170.2,12.08570802]
[1730395284539,12.08570802,170.23,170.19,14.6894]
[1730395288639,7.73856272,170.23,170.19,14.6894]
[1730395289920,7.73856272,170.21,170.19,14.6894]
[1730395290122,7.73856272,170.2,170.15,29.385]
[1730395290325,7.73856272,170.2,170.16,20.5681]
[1730395290529,7.73856272,170.19,170.16,20.5681]
[1730395291638,7.73856272,170.19,170.16,14.6917]
[1730395292322,7.73856272,170.2,170.16,14.6917]
[1730395292523,7.73856272,170.23,170.17,7.73856272]
[1730395293148,7.73856272,170.22,170.17,7.73856272]
[1730395293551,7.73856272,170.2,170.16,20.5685]
[1730395293759,7.73856272,170.19,170.16,20.5685]
[1730395293953,7.73856272,170.19,170.16,14.6917]
[1730395294135,7.73856272,170.18,170.16,14.6917]
[1730395294332,7.73856272,170.17,170.13,14.6944]
[1730395294747,7.73856272,170.16,170.13,14.6944]
[1730395298026,7.73856272,170.18,170.13,14.6944]
[1730395298233,7.73856272,170.17,170.13,14.6944]
[1730395299128,7.73856272,170.16,170.13,14.6944]
[1730395301428,7.73856272,170.15,170.13,14.6944]
[1730395301646,7.73856272,170.16,170.13,14.6944]
[1730395303327,7.73856272,170.17,170.13,14.6944]
[1730395304141,7.73856272,170.18,170.13,14.6944]
[1730395304352,7.73856272,170.2,170.14,7.73856272]
[1730395305049,7.73856272,170.19,170.13,22.43296272]
[1730395305425,7.73856272,170.18,170.13,22.43296272]
[1730395305628,7.73856272,170.18,170.13,20.5722]
[1730395306858,7.73856272,170.17,170.13,20.5722]
[1730395307734,7.73856272,170.18,170.13,20.5722]
[1730395308041,7.73856272,170.19,170.13,28.31076272]
[1730395309153,7.73856272,170.18,170.13,14.6944]
[1730395309359,7.73856272,170.16,170.11,5.8785]
[1730395310538,7.73856272,170.16,170.11,20.5748]
[1730395310740,7.73856272,170.17,170.11,28.31336272]
[1730395311263,7.73856272,170.16,170.11,28.31336272]
[1730395312049,7.73856272,170.16,170.11,20.5748]
[1730395314070,7.73856272,170.16,170.11,28.31336272]
[1730395314557,7.73856272,170.16,170.11,20.5748]
[1730395315250,7.73856272,170.15,170.11,20.5748]
[1730395317240,7.73856272,170.16,170.11,20.5748]
[1730395318255,7.73856272,170.14,170.11,14.6963]
[1730395318556,7.73856272,170.12,170.1,0.6049496]
[1730395320541,7.73856272,170.11,170.1,0.6049496]
[1730395321763,7.73856272,170.12,170.1,0.6049496]
[1730395323540,13.61496272,170.17,170.11,7.73856272]
[1730395323862,7.73856272,170.17,170.11,7.73856272]
[1730395324091,7.73856272,170.18,170.12,7.73856272]
[1730395325034,13.61466272,170.18,170.12,13.61646272]
[1730395325738,13.61426272,170.2,170.14,7.73856272]
[1730395326554,7.73856272,170.18,170.12,28.31196272]
[1730395327149,7.73856272,170.18,170.13,7.73856272]
[1730395328367,7.73856272,170.18,170.14,5.8775]
[1730395328572,7.73856272,170.18,170.14,20.5712]
[1730395330061,7.73856272,170.18,170.14,14.6937]
[1730395330272,13.61426272,170.19,170.14,14.6937]
[1730395330479,7.73856272,170.21,170.15,7.73856272]
[1730395330687,5.8752,170.21,170.16,7.73856272]
[1730395331568,7.73856272,170.23,170.17,7.73856272]
[1730395331772,13.61296272,170.23,170.17,7.73856272]
[1730395331973,5.8744,170.23,170.19,7.73856272]
[1730395332161,13.61256272,170.24,170.18,7.73856272]
[1730395332360,7.73856272,170.25,170.19,7.73856272]
[1730395332558,13.61206272,170.26,170.2,7.73856272]
[1730395332757,7.73856272,170.26,170.2,7.73856272]
[1730395332973,7.73856272,170.26,170.18,15.4959]
[1730395332974,7.73856272,170.25,170.19,7.73856272]
[1730395333279,5.8734,170.26,170.16,14.692]
[1730395333280,7.73856272,170.2,170.16,14.692]
[1730395333488,5.8734,170.26,170.16,14.692]
[1730395333489,7.73856272,170.19,170.16,14.692]
[1730395334056,7.73856272,170.2,170.16,14.692]
[1730395335061,7.73856272,170.21,170.16,14.692]
[1730395335264,7.73856272,170.2,170.16,14.692]
[1730395335481,7.73856272,170.21,170.16,14.692]
[1730395335686,7.73856272,170.22,170.17,7.73856272]
[1730395336057,5.874,170.24,170.19,7.73856272]
[1730395336259,7.73856272,170.25,170.19,7.73856272]
[1730395336688,13.61236272,170.25,170.19,7.73856272]